bitfinex/quotes_SOLUSD_20251013
["timestamp","ask_amount","ask_price","bid_price","bid_amount"]
[1760371872930,0.11120365,197.4,197.37,18.41319146]
[1760371873138,0.0986712,197.42,197.38,9.82]
[1760371873338,0.09603718,197.44,197.38,9.82]
[1760371873669,0.09603718,197.44,197.39,9.82]
[1760371873808,0.09603718,197.44,197.4,9.14]
[1760371874013,0.09603718,197.44,197.4,9.82]
[1760371874219,0.09603718,197.44,197.41,0.68]
[1760371874509,0.1,197.54,197.42,5.06534292]
[1760371874709,0.1,197.54,197.43,30.62]
[1760371874915,20.8,197.54,197.43,21.48]
[1760371875147,10.87647521,197.56,197.44,9.82]
[1760371875345,0.1,197.57,197.45,0.68]
[1760371875836,0.1,197.57,197.47,20.8]
[1760371876033,0.1,197.57,197.51,20.8]
[1760371876239,0.1,197.57,197.52,9.14]
[1760371876529,0.1,197.65,197.53,17.71882751]
[1760371876830,0.1,197.65,197.54,20.8]
[1760371877009,0.1,197.65,197.55,9.14]
[1760371877210,0.1,197.65,197.56,20.8]
[1760371877423,0.1,197.65,197.6,20.8]
[1760371877626,0.1,197.65,197.6,29.94]
[1760371877850,0.1,197.65,197.61,0.68]
[1760371878152,0.1,197.65,197.62,9.14]
[1760371878346,0.2,197.74,197.63,9.82]
[1760371878563,0.2,197.73,197.63,0.68]
[1760371878931,12.64094655,197.77,197.63,14.8798257]
[1760371879261,11.07647521,197.76,197.64,0.67]
[1760371879422,11.07647521,197.76,197.64,9.81]
[1760371879848,20.8,197.74,197.65,0.67]
[1760371880326,21.0,197.74,197.65,0.67]
[1760371880651,5.0574015,197.73,197.64,5.72962146]
[1760371881138,5.0574015,197.73,197.64,14.86962146]
[1760371881540,15.93387671,197.73,197.64,14.86962146]
[1760371881854,15.93387671,197.73,197.64,14.86955288]
[1760371882070,0.10731558,197.65,197.64,14.86955288]
[1760371883132,0.10731558,197.65,197.64,5.72955288]
[1760371883542,0.10731558,197.65,197.64,14.86955288]
[1760371883761,0.10731558,197.65,197.64,5.72955288]
[1760371884060,0.10114078,197.66,197.64,14.86955288]
[1760371884255,0.10114078,197.66,197.65,0.67]
[1760371885850,0.10114078,197.66,197.65,14.86944852]
[1760371886546,0.10114078,197.66,197.65,5.72944852]
[1760371887131,0.10114078,197.66,197.65,14.86944852]
[1760371887329,0.10114078,197.66,197.62,5.73021657]
[1760371887643,0.2,197.65,197.57,0.67]
[1760371887839,20.8,197.59,197.5,0.67]
[1760371888238,20.8,197.59,197.51,9.14]
[1760371888435,20.8,197.59,197.47,14.94743474]
[1760371888436,20.8,197.62,197.52,0.67]
[1760371888637,0.2,197.61,197.52,0.67]
[1760371888836,10.87647521,197.61,197.47,15.33810805]
[1760371889031,10.87647521,197.61,197.45,12.66143327]
[1760371889032,0.2,197.64,197.49,17.72241632]
[1760371889235,10.87647521,197.64,197.51,20.8]
[1760371889441,11.07647521,197.64,197.52,21.47]
[1760371889644,0.2,197.63,197.53,9.14]
[1760371889932,0.2,197.63,197.53,9.81]
[1760371890131,0.2,197.63,197.53,9.14]
[1760371890331,0.2,197.63,197.54,9.81]
[1760371890630,20.8,197.63,197.54,0.67]
[1760371890838,5.16036804,197.66,197.54,0.67]
[1760371891127,0.10114078,197.66,197.55,17.71703365]
[1760371891431,0.10114078,197.66,197.57,10.87647521]
[1760371891633,0.10114078,197.66,197.6,20.8]
[1760371892151,0.10114078,197.66,197.62,10.87647521]
[1760371892458,0.09660873,197.67,197.65,20.8]
[1760371892837,0.09660873,197.67,197.66,9.81]
[1760371893238,0.09660873,197.67,197.66,5.72919255]
[1760371893760,0.09660873,197.67,197.66,14.86919255]
[1760371894457,0.10364099,197.68,197.66,27.0351118]
[1760371894643,0.10364099,197.68,197.67,0.67]
[1760371895048,0.10364099,197.68,197.67,9.81]
[1760371895359,0.10364099,197.68,197.67,14.86893661]
[1760371896048,0.10364099,197.68,197.67,0.67]
[1760371896262,0.10364099,197.68,197.66,5.05904212]
[1760371896568,0.29,197.67,197.58,5.06124101]
[1760371896774,0.29,197.67,197.56,0.67]
[1760371896775,10.87647521,197.67,197.59,0.67]
[1760371897067,20.8,197.67,197.59,0.67]
[1760371897230,25.85895407,197.67,197.6,5.06072874]
[1760371897742,20.8,197.67,197.6,5.06072874]
[1760371898053,0.10364099,197.68,197.61,0.67]
[1760371898255,0.10364099,197.68,197.63,20.8]
[1760371898457,0.10364099,197.68,197.64,0.67]
[1760371898765,0.10364099,197.68,197.65,0.67]
[1760371898953,0.10364099,197.68,197.64,9.79]
[1760371899159,0.10364099,197.68,197.65,0.67]
[1760371899330,0.10364099,197.68,197.66,9.79]
[1760371900560,0.10364099,197.68,197.67,0.67]
[1760371900761,0.10364099,197.68,197.66,0.67]
[1760371900960,0.10364099,197.68,197.66,9.79]
[1760371901148,0.10364099,197.68,197.67,0.67]
[1760371901346,0.10364099,197.68,197.67,5.72893661]
[1760371902038,0.20365617,197.68,197.67,5.72893661]
[1760371902636,0.20365617,197.68,197.62,0.67]
[1760371902843,0.10001518,197.68,197.63,26.82962788]
[1760371903058,0.10001518,197.68,197.64,9.79]
[1760371903259,0.10001518,197.68,197.64,0.67]
[1760371903435,0.10001518,197.68,197.66,5.05919255]
[1760371903859,0.10001518,197.68,197.67,9.79]
[1760371904049,0.10001518,197.68,197.67,0.67]
[1760371905172,0.10001518,197.68,197.67,9.79]
[1760371905567,0.10208379,197.7,197.67,15.35483027]
[1760371905864,0.1040469,197.71,197.68,0.67]
[1760371906379,0.10585475,197.77,197.72,20.8]
[1760371906545,0.10585475,197.77,197.73,0.67]
[1760371906740,0.10585475,197.77,197.74,0.67]
[1760371906943,0.10585475,197.77,197.73,9.12]
[1760371907158,0.10585475,197.77,197.7,21.47]
[1760371907448,0.10585475,197.77,197.72,5.05765729]
[1760371908689,0.10585475,197.77,197.7,5.05816894]
[1760371909372,0.59,197.75,197.66,33.44747782]
[1760371909677,0.10550598,197.76,197.67,5.73893661]
[1760371909985,0.10550598,197.76,197.68,0.68]
[1760371910169,0.59,197.75,197.68,0.68]
[1760371910496,10.87647521,197.74,197.61,0.68]
[1760371910662,10.87647521,197.72,197.61,0.68]
[1760371910986,0.59,197.71,197.61,21.48]
[1760371911159,0.59,197.71,197.62,9.12]
[1760371911358,0.59,197.71,197.61,21.48]
[1760371911566,0.59,197.71,197.63,5.05996053]
[1760371911881,0.59,197.71,197.63,5.73996053]
[1760371912059,0.59,197.71,197.63,14.85996053]
[1760371912259,0.59,197.71,197.63,5.73996053]
[1760371912482,15.93387671,197.73,197.63,5.05996053]
[1760371912679,15.93387671,197.73,197.64,0.68]
[1760371912854,0.59,197.72,197.64,0.68]
[1760371913489,5.64786155,197.72,197.64,0.68]
[1760371913786,5.64786155,197.72,197.63,9.12]
[1760371913957,0.59,197.71,197.62,17.71075801]
[1760371914157,0.59,197.7,197.62,5.06021657]
[1760371914378,0.59,197.69,197.58,0.68]
[1760371914588,15.47728638,197.66,197.55,5.06200961]
[1760371914769,0.59,197.65,197.56,0.68]
[1760371915562,5.05970451,197.64,197.57,5.06149719]
[1760371916171,11.46647521,197.63,197.56,5.06172126]
[1760371916587,11.46647521,197.63,197.54,5.06226587]
[1760371916884,10.87647521,197.58,197.48,5.06380392]
[1760371917093,0.59,197.57,197.48,17.72331374]
[1760371917267,15.47728638,197.58,197.48,5.06380392]
[1760371917466,10.87647521,197.53,197.44,0.88]
[1760371917773,10.87647521,197.53,197.44,0.2]
[1760371917963,10.87647521,197.51,197.44,0.2]
[1760371918168,0.59,197.52,197.44,0.2]
[1760371918463,10.87647521,197.51,197.44,0.2]
[1760371918665,15.47728638,197.49,197.44,0.2]
[1760371919092,10.87647521,197.47,197.44,0.2]
[1760371919586,10.87647521,197.45,197.44,0.2]
[1760371920089,5.6545733,197.45,197.44,0.2]
[1760371920675,21.13185968,197.45,197.44,0.2]
[1760371921698,16.53104851,197.45,197.44,0.2]
[1760371921993,11.57295446,197.45,197.44,0.2]
[1760371922290,0.10647925,197.45,197.44,0.2]
[1760371923491,0.10647925,197.45,197.44,0.7]
[1760371923783,0.10647925,197.45,197.44,6.44482982]
[1760371924686,0.10647925,197.45,197.44,0.7]
[1760371925097,0.10647925,197.45,197.44,5.76482982]
[1760371925287,0.10647925,197.45,197.44,6.44482982]
[1760371926501,0.10647925,197.45,197.44,5.76482982]
[1760371926676,0.10647925,197.45,197.44,0.7]
[1760371927073,0.10647925,197.45,197.44,6.44482982]
[1760371927376,0.10647925,197.45,197.44,0.7]
[1760371927702,37.43752776,197.45,197.44,0.2]
[1760371928701,32.37295446,197.45,197.44,0.2]
[1760371928874,31.78295446,197.45,197.44,0.2]
[1760371929076,0.10647925,197.45,197.44,0.2]
[1760371931282,16.63752776,197.45,197.44,0.2]
[1760371931502,44.37005336,197.45,197.44,0.2]
[1760371932201,23.57005336,197.45,197.44,0.2]
[1760371932497,32.71005336,197.45,197.44,0.2]
[1760371932902,23.57005336,197.45,197.44,0.2]
[1760371933104,16.63752776,197.45,197.44,0.2]
[1760371933295,23.57005336,197.45,197.44,0.2]
[1760371934499,32.71005336,197.45,197.44,0.2]
[1760371934697,23.57005336,197.45,197.44,1e-08]
[1760371934903,43.57005335,197.45,197.44,1e-08]
[1760371935092,52.71005335,197.45,197.44,1e-08]
[1760371935406,32.71005336,197.45,197.44,1e-08]
[1760371935596,52.71005335,197.45,197.44,1e-08]
[1760371935792,23.57005336,197.45,197.44,1e-08]
[1760371935993,16.63752776,197.45,197.44,1e-08]
[1760371936190,44.37005336,197.45,197.44,1e-08]
[1760371936494,23.57005336,197.45,197.44,1e-08]
[1760371936893,52.71005335,197.45,197.44,1e-08]
[1760371937203,31.67647521,197.41,197.36,0.2]
[1760371937395,10.87647521,197.37,197.36,0.2]
[1760371937600,10.87647521,197.44,197.37,0.68]
[1760371937799,5.06508635,197.43,197.37,0.68]
[1760371938099,10.87647521,197.4,197.36,0.2]
[1760371938500,18.39900081,197.4,197.36,0.2]
[1760371938909,10.87647521,197.4,197.36,0.2]
[1760371939701,5.06611277,197.39,197.36,0.2]
[1760371940004,5.06611277,197.39,197.36,0.92]
[1760371940314,5.06611277,197.39,197.36,0.2]
[1760371940804,5.06611277,197.39,197.36,0.92]
[1760371941199,5.06611277,197.39,197.36,0.2]
[1760371941711,10.87647521,197.38,197.36,0.2]
[1760371942089,0.0937955,197.37,197.36,0.2]
[1760371943793,16.03689684,197.37,197.36,0.2]
[1760371944495,0.0937955,197.37,197.36,0.92]
[1760371944791,0.0937955,197.37,197.36,5.98688285]
[1760371946820,0.11115644,197.38,197.36,5.98688285]
[1760371947109,0.09812078,197.4,197.37,0.67754026]
[1760371947323,0.09461138,197.43,197.39,20.8]
[1760371947490,0.10824718,197.46,197.39,20.8]
[1760371947690,0.66,197.57,197.43,20.8]
[1760371947892,0.66,197.65,197.47,20.8]
[1760371948092,0.66,197.68,197.52,17.71972458]
[1760371948529,20.8,197.67,197.55,20.8]
[1760371948739,0.66,197.7,197.55,29.94]
[1760371948913,0.66,197.71,197.55,29.94]
[1760371949100,0.66,197.71,197.56,0.72]
[1760371949422,0.66,197.7,197.56,0.72]
[1760371949605,20.8,197.69,197.56,9.86]
[1760371949807,20.8,197.69,197.57,0.72]
[1760371949998,20.8,197.68,197.57,21.52]
[1760371950192,10.87647521,197.66,197.58,5.78124101]
[1760371950406,10.87647521,197.66,197.59,0.72]
[1760371950709,10.87647521,197.59,197.53,0.72]
[1760371950915,10.87647521,197.58,197.49,0.72]
[1760371951425,10.87647521,197.56,197.49,0.72]
[1760371951596,10.87647521,197.56,197.46,0.72]
[1760371951798,10.87647521,197.54,197.46,0.72]
[1760371952128,15.93893834,197.54,197.46,5.78407132]
[1760371952493,20.8,197.58,197.47,0.72]
[1760371952818,10.87647521,197.57,197.47,0.72]
[1760371952992,11.53647521,197.57,197.47,0.72]
[1760371953591,10.87647521,197.52,197.41,12.66399878]
[1760371953824,10.87647521,197.52,197.45,0.72]
[1760371954119,10.87647521,197.5,197.45,0.72]
[1760371954504,10.87647521,197.5,197.39,17.73139469]
[1760371954704,10.87647521,197.48,197.41,0.72]
[1760371955696,10.87647521,197.46,197.38,0.72]
[1760371955896,10.87647521,197.46,197.38,5.78635065]
[1760371956092,5.0645733,197.45,197.38,0.72]
[1760371956300,10.87647521,197.44,197.38,5.78634367]
[1760371956698,11.53647521,197.44,197.36,0.2]
[1760371957095,11.53647521,197.44,197.36,5.26687351]
[1760371958113,10.87647521,197.42,197.36,5.26687351]
[1760371958308,20.8,197.48,197.36,5.26687351]
[1760371958309,10.87647521,197.46,197.37,0.72]
[1760371960014,10.87647521,197.44,197.37,0.72]
[1760371960218,10.87647521,197.44,197.38,5.06636943]
[1760371961009,5.06149719,197.57,197.39,21.52]
[1760371961217,0.66,197.54,197.41,20.8]
[1760371961416,0.66,197.53,197.41,20.8]
[1760371961631,0.66,197.52,197.41,20.8]
[1760371961921,0.66,197.51,197.41,20.8]
[1760371962128,0.10532722,197.42,197.41,20.8]
[1760371962327,0.10532722,197.42,197.41,26.58559951]
[1760371964131,0.10532722,197.42,197.41,5.06559951]
[1760371964318,0.10532722,197.42,197.36,0.2]
[1760371964319,0.76532722,197.42,197.36,0.2]
[1760371964627,0.10532722,197.42,197.37,18.45319146]
[1760371964924,0.66,197.41,197.36,5.26686042]
[1760371965110,0.66,197.4,197.36,5.26686042]
[1760371966809,0.66,197.39,197.36,0.2]
[1760371967128,0.66,197.39,197.36,5.2667178]
[1760371967934,0.10532722,197.42,197.37,0.72]
[1760371968323,0.10532722,197.42,197.38,5.06636943]
[1760371968527,1e-08,197.51,197.42,31.78180243]
[1760371968736,0.71,197.63,197.49,20.8]
[1760371968924,0.71,197.57,197.38,53.26414021]
[1760371969117,0.71,197.56,197.41,20.8]
[1760371969318,20.8,197.52,197.41,20.8]
[1760371969619,0.69,197.51,197.42,10.87647521]
[1760371969827,0.69,197.5,197.41,20.8]
[1760371970028,0.69,197.49,197.41,20.8]
[1760371970232,21.49,197.55,197.42,10.87647521]
[1760371970428,0.69,197.55,197.43,17.72780224]
[1760371970629,0.69,197.55,197.46,20.8]
[1760371970949,0.69,197.54,197.43,38.52780224]
[1760371971740,0.69,197.53,197.43,38.52780224]
[1760371972232,0.69,197.52,197.43,38.52780224]
[1760371972634,31.67647521,197.5,197.41,5.06534613]
[1760371972833,10.87647521,197.48,197.41,5.06534613]
[1760371973044,0.69,197.47,197.41,5.06534613]
[1760371973216,0.69,197.46,197.39,5.06589924]
[1760371973415,10.11,197.45,197.39,5.06589924]
[1760371973612,0.69,197.45,197.39,5.06589924]
[1760371974120,10.11,197.45,197.39,5.06589924]
[1760371974341,0.69,197.45,197.39,5.06589924]
[1760371974544,0.69,197.45,197.38,12.66569783]
[1760371974732,10.11,197.45,197.38,12.66569783]
[1760371974930,0.69,197.45,197.38,12.66569783]
[1760371975524,9.4,197.44,197.38,12.66569783]
[1760371975720,0.69,197.45,197.38,12.66569783]
[1760371975934,6.9325256,197.53,197.37,5.06662613]
[1760371975935,21.49,197.44,197.37,5.06662613]
[1760371976131,20.8,197.44,197.37,5.06662613]
[1760371976337,0.69,197.43,197.37,5.06662613]
[1760371976940,9.4,197.42,197.37,5.06662613]
[1760371977259,10.87647521,197.47,197.37,5.06662613]
[1760371977549,0.69,197.46,197.37,17.73319146]
[1760371977727,0.69,197.45,197.37,5.06662613]
[1760371977933,10.87647521,197.43,197.36,0.2]
[1760371978121,0.69,197.44,197.36,0.2]
[1760371978531,9.4,197.43,197.36,38.73396411]
[1760371978774,0.69,197.44,197.36,38.73396411]
[1760371979137,9.4,197.43,197.36,38.73396411]
[1760371979327,0.69,197.44,197.36,38.73396411]
[1760371979527,9.4,197.43,197.36,38.73396411]
[1760371980038,0.69,197.48,197.39,20.8]
[1760371980234,15.9382286,197.56,197.39,20.8]
[1760371980539,0.69,197.51,197.4,17.73049644]
[1760371980736,0.69,197.51,197.43,20.8]
[1760371981047,0.69,197.5,197.4,5.06585612]
[1760371981252,20.96647521,197.49,197.4,5.06585612]
[1760371981430,11.56647521,197.49,197.4,5.06585612]
[1760371981631,0.69,197.49,197.4,17.73049644]
[1760371981828,10.09,197.52,197.41,20.8]
[1760371982041,0.09529863,197.42,197.41,20.8]
[1760371982258,0.09507187,197.43,197.42,20.8]
[1760371982430,0.10599314,197.44,197.42,20.8]
[1760371982628,0.10281,197.46,197.43,5.06508635]
[1760371982952,5.7520292,197.55,197.43,25.86508635]
[1760371983264,5.06123057,197.59,197.43,38.52780224]
[1760371983554,0.69,197.59,197.47,10.87647521]
[1760371983943,0.69,197.59,197.45,10.87647521]
[1760371984133,0.69,197.62,197.48,20.8]
[1760371984341,8.27239512,197.58,197.48,20.8]
[1760371984659,8.27239512,197.58,197.36,26.08354501]
[1760371984660,0.69,197.57,197.39,10.87647521]
[1760371984830,0.69,197.56,197.46,20.8]
[1760371986330,7.58239512,197.58,197.46,20.8]
[1760371986652,7.58239512,197.58,197.47,10.87647521]
[1760371986831,7.58239512,197.58,197.5,20.8]
[1760371989447,0.69,197.57,197.47,20.8]
[1760371989649,0.69,197.56,197.4,10.87647521]
[1760371989845,11.56647521,197.55,197.36,0.2]
[1760371990048,11.56647521,197.55,197.39,31.67647521]
[1760371990252,9.38,197.54,197.39,31.67647521]
[1760371990448,20.8,197.48,197.36,0.2]
[1760371990635,0.69,197.47,197.36,0.2]
[1760371990835,10.87647521,197.46,197.36,0.2]
[1760371991061,0.69,197.45,197.36,0.2]
[1760371991634,0.69,197.48,197.36,0.2]
[1760371991834,10.87647521,197.47,197.36,0.2]
[1760371992044,0.69,197.46,197.36,21.0]
[1760371992260,0.69,197.45,197.36,21.0]
[1760371992450,0.69,197.45,197.36,0.2]
[1760371992961,0.69,197.45,197.36,21.0]
[1760371993858,10.87647521,197.43,197.36,0.2]
[1760371994064,0.69,197.42,197.36,0.2]
[1760371994246,31.67647521,197.41,197.36,0.2]
[1760371994561,10.87647521,197.39,197.23,0.4]
[1760371994863,10.87647521,197.37,197.23,0.4]
[1760371995053,20.8,197.34,197.23,0.2]
[1760371995567,0.69,197.33,197.23,0.2]
[1760371995946,0.69,197.33,197.25,20.8]
[1760371996137,0.69,197.33,197.23,0.4]
[1760371998148,0.69,197.31,197.23,0.2]
[1760371998353,10.07,197.31,197.23,0.2]
[1760371999258,15.47132974,197.3,197.23,0.2]
[1760371999442,4.59485453,197.28,197.23,0.2]
[1760371999650,9.38,197.27,197.23,0.2]
[1760371999863,16.14132974,197.27,197.23,0.2]
[1760372000057,10.87647521,197.25,197.23,0.2]
[1760372000252,9.38,197.24,197.17,0.2]
[1760372000554,0.67,197.24,197.17,0.2]
[1760372000765,9.38,197.23,197.17,0.2]
[1760372000948,0.67,197.22,197.17,0.2]
[1760372001150,0.67,197.21,197.17,0.2]
[1760372001448,0.67,197.2,197.17,0.2]
[1760372001646,0.67,197.19,197.17,0.2]
[1760372001846,0.67,197.18,197.17,0.2]
[1760372002039,10.13998698,197.18,197.17,0.2]
[1760372002238,14.75484151,197.18,197.09,20.8]
[1760372002543,20.8,197.15,197.05,0.2]
[1760372002744,9.36,197.14,197.05,0.2]
[1760372002945,10.03,197.14,197.05,0.2]
[1760372003158,0.67,197.14,197.05,0.2]
[1760372003363,9.36,197.13,197.05,0.2]
[1760372003560,10.03,197.12,197.05,0.2]
[1760372003779,10.87647521,197.11,197.05,0.2]
[1760372004066,31.67647521,197.09,196.88,0.2]
[1760372004240,10.87647521,197.05,196.92,0.67]
[1760372004445,9.38,197.04,196.92,0.67]
[1760372004642,0.67,197.04,196.88,23.650594]
[1760372004840,0.67,197.04,196.88,2.850594]
[1760372005053,0.67,197.04,196.95,0.67]
[1760372005569,10.05,197.04,196.95,0.67]
[1760372005972,0.67,197.04,196.95,0.67]
[1760372006646,10.05,197.04,196.95,0.67]
[1760372006965,0.67,197.04,196.92,0.67]
[1760372007155,10.05,197.04,196.92,0.67]
[1760372007558,16.14132974,197.04,196.89,0.67]
[1760372007761,16.14132974,197.04,196.88,0.2]
[1760372007951,25.52132974,197.04,196.91,0.67]
[1760372008147,21.47,197.04,196.92,20.8]
[1760372008354,30.85,197.04,196.94,0.67]
[1760372009050,21.47,197.04,196.94,0.67]
[1760372009567,20.8,197.04,196.92,20.8]
[1760372009770,30.85,197.04,196.95,0.67]
[1760372009948,21.47,197.04,196.95,0.67]
[1760372010285,21.47,197.04,196.92,0.67]
[1760372010286,16.14132974,197.04,196.92,0.67]
[1760372010574,10.87647521,197.02,196.92,0.67]
[1760372011184,0.67,197.01,196.92,0.67]
[1760372011543,19.99999999,197.1,196.92,21.47]
[1760372011765,19.99999999,197.1,196.88,0.2]
[1760372011766,20.8,197.02,196.93,0.67]
[1760372012064,21.47,197.02,196.93,0.67]
[1760372012269,10.87647521,197.01,196.93,0.67]
[1760372012456,9.38,197.0,196.93,0.67]
[1760372013058,9.38,197.0,196.88,0.2]
[1760372013059,10.87647521,196.99,196.88,0.87]
[1760372013269,0.67,196.98,196.88,0.87]
[1760372013662,9.38,196.97,196.88,0.87]
[1760372013867,0.67,196.98,196.88,0.87]
[1760372014062,0.67,196.97,196.88,0.2]
[1760372014369,20.25647521,196.96,196.88,0.2]
[1760372014671,20.92647521,196.96,196.88,0.2]
[1760372014872,11.54647521,196.96,196.88,0.2]
[1760372015264,9.38,196.95,196.88,0.2]
[1760372015481,9.38,196.94,196.88,0.2]
[1760372015978,11.54647521,196.96,196.88,0.2]
[1760372016174,0.67,196.94,196.88,0.2]
[1760372016369,10.05,196.94,196.88,0.2]
[1760372016568,0.67,196.94,196.88,0.2]
[1760372017157,36.27132974,196.93,196.88,0.2]
[1760372017377,0.67,196.92,196.88,0.2]
[1760372017570,10.87647521,196.94,196.88,0.2]
[1760372017978,0.67,196.93,196.88,0.2]
[1760372018172,10.05,196.92,196.88,0.2]
[1760372018364,5.07846224,196.91,196.88,0.2]
[1760372018682,10.34331677,196.91,196.88,0.2]
[1760372018863,23.03947237,196.91,196.88,0.2]
[1760372019063,9.38,196.9,196.88,0.2]
[1760372019278,23.03947237,196.91,196.88,0.2]
[1760372019480,0.67,196.89,196.88,0.2]
[1760372020076,10.05,196.89,196.88,0.2]
[1760372020279,10.03,196.89,196.88,0.2]
[1760372020466,15.1089781,196.89,196.88,0.2]
[1760372020867,5.7489781,196.89,196.88,0.2]
[1760372021076,15.1089781,196.89,196.88,0.2]
[1760372022090,15.210632,196.89,196.88,0.2]
[1760372022289,5.850632,196.89,196.88,0.2]
[1760372022467,0.1016539,196.89,196.88,0.2]
[1760372022667,9.4616539,196.89,196.88,0.2]
[1760372022877,0.1016539,196.89,196.88,0.2]
[1760372023280,9.4616539,196.89,196.88,0.2]
[1760372023777,0.1016539,196.89,196.88,0.2]
[1760372024388,9.4616539,196.89,196.88,0.2]
[1760372025289,0.1016539,196.89,196.88,0.2]
[1760372025480,0.1016539,196.89,196.88,5.94923608]
[1760372026006,9.4616539,196.89,196.88,5.94923608]
[1760372026470,0.1016539,196.89,196.88,5.94923608]
[1760372026677,9.4616539,196.89,196.88,5.27923608]
[1760372027382,0.1016539,196.89,196.88,5.94923608]
[1760372027596,0.09673176,196.91,196.9,20.8]
[1760372027918,0.11138011,196.96,196.92,20.8]
[1760372028126,0.66,197.07,196.96,20.8]
[1760372028593,0.66,197.07,196.97,0.69]
[1760372028793,0.66,197.07,196.98,5.07665752]
[1760372028992,10.02,197.06,196.98,5.07665752]
[1760372029211,0.72,197.05,196.98,5.07665752]
[1760372029407,10.08,197.05,196.98,5.07665752]
[1760372029586,0.72,197.05,196.96,5.07717303]
[1760372029785,0.72,197.05,196.96,5.76717303]
[1760372029990,9.36,197.04,196.96,18.4601056]
[1760372030218,23.56179681,197.08,196.97,0.69]
[1760372030219,0.72,197.08,196.97,0.69]
[1760372030587,10.87647521,197.06,196.97,0.69]
[1760372030793,0.72,197.05,196.96,12.69293257]
[1760372031193,9.34,197.04,196.97,0.69]
[1760372031501,0.72,197.05,196.95,5.07743082]
[1760372031502,10.06,197.03,196.95,5.07743082]
[1760372031698,9.34,197.02,196.95,5.07743082]
[1760372031888,0.72,197.02,196.95,5.07743082]
[1760372032100,9.34,197.01,196.95,5.07743082]
[1760372032520,21.52,197.02,196.95,5.07743082]
[1760372032732,20.8,197.02,196.92,5.07820434]
[1760372032908,20.8,197.02,196.94,0.69]
[1760372033230,20.8,197.03,196.94,0.69]
[1760372033519,21.52,197.03,196.94,0.69]
[1760372033700,21.52,197.03,196.92,17.77324458]
[1760372033904,10.06,197.02,196.92,17.77324458]
[1760372034089,0.72,197.01,196.92,17.77324458]
[1760372034892,10.87647521,197.05,196.93,0.69]
[1760372035131,0.72,197.04,196.93,0.69]
[1760372035837,0.72,197.04,196.95,20.8]
[1760372036128,25.87459656,197.06,196.96,18.4601056]
[1760372036435,0.72,197.07,196.96,17.7701056]
[1760372036607,0.72,197.11,196.99,20.8]
[1760372036927,4.59485453,197.14,197.0,0.69]
[1760372037127,0.72,197.1,197.0,0.69]
[1760372037311,20.21647521,197.09,197.0,0.69]
[1760372037507,0.72,197.08,196.99,20.8]
[1760372037707,0.72,197.07,196.99,20.8]
[1760372037919,0.72,197.07,197.0,5.07614213]
[1760372037920,9.34,197.06,197.0,5.07614213]
[1760372038430,11.59647521,197.05,196.96,20.8]
[1760372038629,10.06,197.04,196.96,20.8]
[1760372038848,0.72,197.04,196.96,20.8]
[1760372039330,9.34,197.03,196.96,20.8]
[1760372039540,10.06,197.02,196.91,0.69]
[1760372039845,9.34,197.01,196.92,20.8]
[1760372040016,10.06,197.0,196.92,20.8]
[1760372040213,5.31485453,196.99,196.89,17.77642337]